[Event "French-ch U16-U18 2024"]
[Site "Agen"]
[Date "2024.04.14"]
[Round "1.1"]
[White "Famel, Diane"]
[Black "Da Costa, Garance-Marie"]
[Result "1-0"]
[ECO "D31"]
[WhiteElo "1888"]
[BlackElo "1546"]
[Annotator "NA RC"]
[PlyCount "82"]
[EventDate "2024.04.14"]
[EventType "swiss"]
[EventCountry "FRA"]
[SourceTitle "playchess.com"]
[Source "ChessBase"]
[SourceQuality "1"]
[TimeControl "5400+30"]

1. d4 {[%emt 0:00:04]} d5 {[%emt 0:00:07]} 2. c4 {[%emt 0:00:06]} e6 {[%emt 0:01:02]} 3. Nc3 {[%emt 0:00:12]} c6 {[%emt 0:00:54]} 4. cxd5 {[%emt 0:00:56]} exd5 {[%emt 0:02:17]} 5. Bf4 {[%emt 0:01:02]} Bd6 {[%emt 0:04:57]} 6. Bxd6 {[%emt 0:00:38]} Qxd6 {[%emt 0:00:10]} 7. e3 {[%emt 0:00:10]} Bf5 {[%emt 0:02:05]} 8. Nf3 {[%emt 0:07:02]} Nd7 {[%emt 0:05:48] D31: Queen's Gambit Declined: Semi-Slav without ...Nf6 (+ Marshall Gambit and Noteboom) and Exchange Variation lines without ...Nf6.} 9. Be2 {[%emt 0:00:42]} Ngf6 {[%emt 0:03:27]} 10. O-O {[%emt 0:05:45]} O-O {[%emt 0:02:05]} 11. Nh4 {[%emt 0:03:22]} Be4 {[%emt 0:09:53]} 12. Nxe4 {[%emt 0:01:14]} Nxe4 {[%emt 0:03:10]} 13. f3 {[%emt 0:09:06]} Nef6 {[%emt 0:04:26]} 14. Nf5 {[%emt 0:06:46]} Qe6 {[%emt 0:03:31]} 15. Qd3 {[%emt 0:00:22]} Rfe8 {[%emt 0:54:08]} 16. Kf2 {[%emt 0:01:14]} c5 {[%emt 0:00:00]} 17. Ng3 {[%emt 0:02:54]} Re7 {[%emt 0:00:00]} 18. Rae1 {[%emt 0:03:06]} Rae8 {[%emt 0:00:00]} 19. Nf5 {[%emt 0:01:00]} c4 {[%emt 0:00:00]} 20. Nxe7+ {[%emt 0:00:18]} Rxe7 {[%emt 0:00:00]} 21. Qc3 {[%emt 0:07:03]} Qf5 {[%emt 0:00:00]} 22. Kg1 {[%emt 0:00:40]} Re6 {[%emt 0:00:00]} 23. Bd1 {[%emt 0:02:04]} Nf8 {[%emt 0:00:00]} 24. e4 {[%emt 0:10:39]} Qg5 {[%emt 0:00:00]} 25. f4 {[%emt 0:02:36]} Qh4 {[%emt 0:00:00]} 26. e5 {[%emt 0:02:27]} Ne4 {[%emt 0:00:00]} 27. Qh3 {[%emt 0:08:10]} Qd8 $2 {[%emt 0:00:00]} (27... Qxh3 $16 28. gxh3 f5 29. exf6 Nd7) 28. Bc2 {[%emt 0:05:36]} Rh6 {[%emt 0:06:30]} 29. Qe3 {[%emt 0:02:35]} Qh4 {[%emt 0:00:00]} 30. Bxe4 {[%emt 0:01:30]} Qxh2+ {[%emt 0:00:00]} 31. Kf2 {[%emt 0:00:12]} Qh4+ {[%emt 0:00:00]} 32. g3 {[%emt 0:00:40]} Qg4 {[%emt 0:00:00]} 33. Bg2 {[%emt 0:00:28]} Rg6 {[%emt 0:00:00]} 34. Qf3 {[%emt 0:00:17]} Qf5 {[%emt 0:00:00]} 35. Qxd5 {[%emt 0:00:50]} Qg4 {[%emt 0:00:29]} 36. Qf3 $18 {[%emt 0:00:40]} Qd7 {[%emt 0:01:03]} 37. d5 {[%emt 0:01:17]} Rb6 {[%emt 0:00:58]} 38. Re2 {[%emt 0:00:50]} Qa4 {[%emt 0:01:15]} 39. Qa3 {[%emt 0:01:19]} Qb5 {[%emt 0:01:08]} 40. d6 {[%emt 0:00:56]} Nd7 {[%emt 0:00:27]} 41. Qe3 {[%emt 0:01:06]} Nc5 {[%emt 0:01:10]} 1-0

[Event "French-ch U16-U18 2024"]
[Site "Agen"]
[Date "2024.04.14"]
[Round "1.2"]
[White "Deboaisne, Enogate"]
[Black "Bat, Anu"]
[Result "0-1"]
[ECO "B22"]
[WhiteElo "1541"]
[BlackElo "1887"]
[Annotator "NA RC"]
[PlyCount "108"]
[EventDate "2024.04.14"]
[EventType "swiss"]
[EventCountry "FRA"]
[SourceTitle "playchess.com"]
[Source "ChessBase"]
[SourceQuality "1"]
[TimeControl "5400+30"]

1. e4 {[%emt 0:00:03]} c5 {[%emt 0:00:06]} 2. c3 {[%emt 0:00:21]} d5 {[%emt 0:00:08]} 3. exd5 {[%emt 0:11:11]} Nf6 {[%emt 0:00:06]} 4. d4 {[%emt 0:02:52]} Nxd5 {[%emt 0:00:13]} 5. c4 {[%emt 0:07:12]} Nf6 {[%emt 0:01:04]} 6. d5 {[%emt 0:00:21] B22: Sicilian: 2 c3.} e6 {[%emt 0:04:47]} 7. Bg5 {[%emt 0:07:26]} exd5 {[%emt 0:09:11]} 8. cxd5 {[%emt 0:06:06]} Qxd5 {[%emt 0:01:27]} 9. Qe2+ {[%emt 0:07:44]} Qe6 {[%emt 0:07:56]} 10. Bxf6 {[%emt 0:00:40]} gxf6 {[%emt 0:00:06]} 11. Nf3 {[%emt 0:01:29]} Be7 {[%emt 0:01:45]} 12. Nc3 {[%emt 0:04:02]} a6 {[%emt 0:05:29]} 13. O-O-O {[%emt 0:05:00]} Qxe2 {[%emt 0:17:11]} 14. Bxe2 {[%emt 0:00:15]} Be6 {[%emt 0:03:39]} 15. Nd5 {[%emt 0:02:49]} Bd8 {[%emt 0:01:38]} 16. Rhe1 {[%emt 0:01:02]} O-O {[%emt 0:00:30]} 17. g4 {[%emt 0:04:16]} Nc6 {[%emt 0:01:07]} 18. g5 {[%emt 0:03:05]} fxg5 {[%emt 0:01:32]} 19. Nxg5 {[%emt 0:00:17]} Bxg5+ {[%emt 0:00:07]} 20. Kb1 {[%emt 0:15:25]} Nd4 {[%emt 0:02:18]} 21. Rg1 {[%emt 0:04:31]} h6 {[%emt 0:02:45]} 22. Bc4 {[%emt 0:06:33]} Bf5+ {[%emt 0:02:19]} 23. Bd3 {[%emt 0:00:18]} Bxd3+ {[%emt 0:00:08]} 24. Rxd3 {[%emt 0:00:06]} Rad8 {[%emt 0:02:10]} 25. Nf4 {[%emt 0:02:21]} Ne2 {[%emt 0:02:28]} 26. Rxd8 {[%emt 0:01:28]} Nxg1 {[%emt 0:00:06]} 27. Rxf8+ {[%emt 0:00:17]} Kxf8 {[%emt 0:00:07]} 28. Nd5 {[%emt 0:00:16]} Nf3 {[%emt 0:00:41]} 29. h3 {[%emt 0:00:36]} Bh4 {[%emt 0:00:10]} 30. Kc2 {[%emt 0:00:26]} Bxf2 {[%emt 0:00:12]} 31. Kd3 {[%emt 0:00:29]} Ng5 {[%emt 0:00:45]} 32. Nf6 {[%emt 0:00:39]} Nxh3 {[%emt 0:00:48]} 33. Ng4 {[%emt 0:00:27]} Bd4 {[%emt 0:00:57]} 34. Nxh6 {[%emt 0:00:20]} Ke7 {[%emt 0:01:23]} 35. b3 {[%emt 0:00:58]} Ke6 {[%emt 0:00:11]} 36. a4 {[%emt 0:00:47]} Nf2+ {[%emt 0:00:15]} 37. Kc4 {[%emt 0:00:20]} b6 {[%emt 0:01:10]} 38. b4 {[%emt 0:00:34]} Be3 {[%emt 0:00:19]} 39. Nxf7 {[%emt 0:02:12]} Kxf7 {[%emt 0:00:19]} 40. a5 {[%emt 0:00:26]} b5+ {[%emt 0:00:29]} 41. Kc3 {[%emt 0:00:52]} cxb4+ {[%emt 0:00:22]} 42. Kxb4 {[%emt 0:00:27]} Bd2+ {[%emt 0:00:06]} 43. Kb3 {[%emt 0:00:12]} Bxa5 {[%emt 0:00:08]} 44. Kb2 {[%emt 0:00:09]} Bb6 {[%emt 0:00:09]} 45. Kb3 {[%emt 0:00:11]} a5 {[%emt 0:00:05]} 46. Ka3 {[%emt 0:00:07]} Bc5+ {[%emt 0:00:05]} 47. Kb3 {[%emt 0:00:13]} a4+ {[%emt 0:00:04]} 48. Kc3 {[%emt 0:00:18]} b4+ {[%emt 0:00:13]} 49. Kb2 {[%emt 0:00:18]} Nd1+ {[%emt 0:00:25]} 50. Ka2 {[%emt 0:00:34]} b3+ {[%emt 0:00:09]} 51. Kb1 {[%emt 0:00:05]} a3 {[%emt 0:00:09]} 52. Ka1 {[%emt 0:00:20]} Bd4+ {[%emt 0:00:08]} 53. Kb1 {[%emt 0:00:13]} a2+ {[%emt 0:00:05]} (53... Nc3+ $142 54. Kc1 Be3#) 54. Kc1 {[%emt 0:00:05]} a1=Q+ {[%emt 0:00:09]} (54... Nb2 $142 55. Kd2 a1=Q 56. Ke2 Qd1#) 0-1

[Event "French-ch U16-U18 2024"]
[Site "Agen"]
[Date "2024.04.14"]
[Round "1.3"]
[White "Fesigny, Oceane"]
[Black "Kaliski, Esther"]
[Result "1/2-1/2"]
[ECO "B43"]
[WhiteElo "1829"]
[BlackElo "1537"]
[Annotator "NA RC"]
[PlyCount "147"]
[EventDate "2024.04.14"]
[EventType "swiss"]
[EventCountry "FRA"]
[SourceTitle "playchess.com"]
[Source "ChessBase"]
[SourceQuality "1"]
[TimeControl "5400+30"]

1. e4 {[%emt 0:00:04]} c5 {[%emt 0:00:35]} 2. Nf3 {[%emt 0:00:35]} e6 {[%emt 0:00:31]} 3. d4 {[%emt 0:01:17]} cxd4 {[%emt 0:01:01]} 4. Nxd4 {[%emt 0:00:43]} a6 {[%emt 0:01:42]} 5. Nc3 {[%emt 0:02:25]} Qc7 {[%emt 0:01:10]} 6. Be3 {[%emt 0:03:25]} Nf6 {[%emt 0:01:15]} 7. f3 {[%emt 0:05:02]} Be7 {[%emt 0:01:51] B43: Sicilian: Kan Variation: 5 Nc3.} 8. Qd2 {[%emt 0:09:18]} O-O {[%emt 0:02:26]} 9. O-O-O {[%emt 0:09:22]} b5 {[%emt 0:02:02]} 10. g4 {[%emt 0:09:39]} Bb7 {[%emt 0:05:37]} 11. h4 {[%emt 0:08:45]} d5 {[%emt 0:03:23]} 12. e5 {[%emt 0:21:35]} Nfd7 {[%emt 0:03:10]} 13. f4 {[%emt 0:01:10]} Nc6 {[%emt 0:07:19]} 14. Kb1 {[%emt 0:07:24]} Nxd4 {[%emt 0:03:23]} 15. Bxd4 {[%emt 0:00:16]} f6 {[%emt 0:03:29]} (15... b4 $15 16. Ne2 a5) 16. Re1 {[%emt 0:09:31]} fxe5 {[%emt 0:03:08]} 17. Bxe5 {[%emt 0:02:12]} Nxe5 {[%emt 0:00:41]} 18. Rxe5 {[%emt 0:00:58]} Rxf4 {[%emt 0:09:29]} 19. Rxe6 {[%emt 0:03:09]} d4 {[%emt 0:05:04]} 20. Ne2 {[%emt 0:00:24]} Rxg4 {[%emt 0:01:31]} 21. Rg1 {[%emt 0:01:38]} Rxg1 {[%emt 0:01:59]} 22. Nxg1 {[%emt 0:00:03]} Bxh4 {[%emt 0:01:43]} 23. Bg2 {[%emt 0:02:05]} Bf6 {[%emt 0:02:49]} 24. Bxb7 {[%emt 0:00:46]} Qxb7 {[%emt 0:00:13]} 25. Re1 {[%emt 0:00:22]} Qd7 {[%emt 0:02:37]} 26. Nf3 {[%emt 0:00:41]} Re8 {[%emt 0:01:49]} 27. Rd1 {[%emt 0:00:32]} Rd8 {[%emt 0:01:20]} 28. a3 {[%emt 0:00:27]} Qd5 {[%emt 0:01:38]} 29. Ne1 {[%emt 0:00:36]} Re8 {[%emt 0:02:23]} 30. Nd3 {[%emt 0:00:32]} h5 {[%emt 0:03:07]} 31. Rg1 {[%emt 0:00:30]} Re3 {[%emt 0:03:51]} 32. Qh2 {[%emt 0:00:30]} h4 {[%emt 0:01:25]} 33. Qf4 {[%emt 0:00:30]} Qf3 {[%emt 0:02:40]} 34. Qh2 {[%emt 0:00:31]} h3 {[%emt 0:01:38]} 35. Ne1 {[%emt 0:00:28]} Qd1+ $19 {[%emt 0:00:47]} 36. Ka2 {[%emt 0:00:15]} Rxe1 {[%emt 0:00:12]} 37. Rxe1 {[%emt 0:00:46]} Qxe1 {[%emt 0:00:08]} 38. Qxh3 {[%emt 0:00:03]} Qd2 {[%emt 0:00:53]} 39. Qe6+ {[%emt 0:00:20]} Kh8 {[%emt 0:00:52]} 40. Qh3+ {[%emt 0:01:05]} Kg8 {[%emt 0:01:03]} 41. Qe6+ $1 {[%emt 0:00:12]} Kf8 {[%emt 0:00:25]} 42. Qc8+ {[%emt 0:00:20]} Kf7 {[%emt 0:00:09]} 43. Qd7+ {[%emt 0:00:38]} Kg6 {[%emt 0:00:23]} 44. Qg4+ {[%emt 0:00:26]} Qg5 {[%emt 0:00:13]} 45. Qe4+ {[%emt 0:00:08]} Kh5 {[%emt 0:00:26]} 46. Qh7+ {[%emt 0:00:51]} Kg4 {[%emt 0:00:13]} 47. Qe4+ {[%emt 0:00:07]} Qf4 {[%emt 0:00:41]} 48. Qg2+ {[%emt 0:00:39]} Kf5 {[%emt 0:00:18]} 49. Qd5+ {[%emt 0:00:19]} Qe5 {[%emt 0:00:13]} 50. Qf3+ {[%emt 0:00:21]} Ke6 {[%emt 0:00:30]} 51. Qc6+ {[%emt 0:00:18]} Qd6 {[%emt 0:00:30]} 52. Qe4+ {[%emt 0:01:07]} Kd7 {[%emt 0:00:56]} 53. Qb7+ {[%emt 0:00:19]} Ke8 {[%emt 0:00:37]} 54. Qe4+ {[%emt 0:01:00]} Kd7 $2 {[%emt 0:02:04]} (54... Qe5 $19 55. Qg2 g5) 55. Qb7+ $1 {[%emt 0:00:07]} Ke8 $2 {[%emt 0:00:56]} (55... Kd8 $19 56. Qf7 d3 57. cxd3 Qe5 (57... Qxd3 $2 58. Qf8+ Kc7 59. Qf7+ Qd7 60. Qg6 $19) 58. Qf8+ Kc7) 56. Qe4+ {[%emt 0:00:18]} Kf7 {[%emt 0:00:18]} 57. Qb7+ {[%emt 0:00:32]} Qe7 {[%emt 0:00:16]} 58. Qf3 {[%emt 0:00:45]} g6 {[%emt 0:01:09]} 59. Ka1 {[%emt 0:01:01]} Kg7 {[%emt 0:00:37]} 60. Qc6 {[%emt 0:00:23]} Qa7 {[%emt 0:01:30]} (60... d3 $142 61. Qxf6+ Qxf6 (61... Kxf6 {leads to mate.} 62. cxd3 Ke5 63. Kb1 Kd4 64. Kc2 Qe2+ 65. Kb3 Qd1+ 66. Ka2 Kxd3 67. b4 Kc3 68. a4 Qe2+ 69. Kb1 Qb2#) 62. cxd3 g5 63. Ka2 g4 64. Kb3 g3 65. a4 g2 (65... bxa4+ 66. Kc2 g2 67. b3 g1=Q 68. bxa4 Qg2+ 69. Kb3 Qgb2+ 70. Kc4 Qfd4#) 66. axb5 g1=Q (66... g1=B {is a self mate.} 67. bxa6 Qe6+ 68. Kc3 Qc6+ 69. Kb4 Bd4 70. a7 Qb6+ 71. Kc4 Qc5+ 72. Kb3 Qb5+ 73. Kc2 Qxb2+ 74. Kd1 Bc3 75. a8=Q Qd2#) 67. Kc4 Qgd4+ (67... Qxb2 68. Kd5 Qgd4+ 69. Kc6 Qxb5+ 70. Kc7 Qdd7#) 68. Kb3 Qff2 69. bxa6 Qfxb2#) 61. Qd5 {[%emt 0:00:36]} Qc7 {[%emt 0:00:25]} 62. Kb1 {[%emt 0:00:32]} Qe7 {[%emt 0:01:56]} 63. Qc6 {[%emt 0:00:29]} b4 {[%emt 0:02:03]} 64. axb4 {[%emt 0:00:35]} Qxb4 {[%emt 0:00:25]} 65. Qd7+ {[%emt 0:00:26]} Qe7 {[%emt 0:00:19]} 66. Qc6 {[%emt 0:00:31]} a5 {[%emt 0:01:22]} 67. Qb5 {[%emt 0:00:30]} Qa7 {[%emt 0:00:24]} 68. b3 {[%emt 0:00:31]} Qc7 {[%emt 0:00:41]} (68... d3 $142 69. c3 Qg1+ (69... Bxc3 $2 70. Qxd3 Bf6 71. Qd5 $19) 70. Ka2 Qh2+ (70... Bxc3 $2 71. b4 $19) 71. Ka3 Qd6+ (71... Bxc3 $2 72. Qd7+ Kh6 73. Qxd3 $19) 72. Ka4 d2 (72... Bxc3 73. Qb7+ Kf6 74. Qf3+ Ke7 75. Qe4+ Be5 76. Qh4+ Ke8 77. Kxa5 d2 78. Qa4+ Kf7 79. Qc4+ Kg7 80. Qf1 d1=Q 81. Qxd1 Qxd1 82. Kb5 Qxb3+ 83. Kc5 Kf6 84. Kc6 Ke6 85. Kc5 Bc7 86. Kd4 Bb6+ 87. Ke4 Qe3#) 73. Qb7+ Be7 74. Qh1 d1=Q (74... d1=B 75. Qf1 Qa3+ 76. Kb5 Bxb3 77. Qg2 Qc5+ 78. Ka6 Bc4+ 79. Kb7 Bd6 80. Qc6) 75. Qxd1 Qxd1 76. Kb5 Qd5+ (76... Qxb3+ {gets mated.} 77. Kc6 Kf7 78. c4 Qxc4+ 79. Kb6 Ke6 80. Ka7 Qb5 81. Ka8 Qa6+ 82. Kb8 Bd6#) 77. Kb6 Bd8+ (77... Qxb3+ {leads to mate.} 78. Kc7 Qxc3+ 79. Kb6 Bd8+ 80. Kb5 Bc7 81. Ka6 Qc6+ 82. Ka7 Qb6+ 83. Ka8 Qb8#) 78. Ka7 Qxb3 79. c4 Qb6+ (79... Qxc4 {is a self mate.} 80. Kb7 Qb5+ 81. Kc8 Qb6 82. Kd7 Kf7 83. Kc8 Qc7#) 80. Ka8 Bc7 81. c5 Qb8#) 69. Qd5 {[%emt 0:00:29]} Qe5 {[%emt 0:01:25]} 70. Qd7+ {[%emt 0:00:24]} Be7 {[%emt 0:00:26]} 71. Qc6 {[%emt 0:00:36]} Qe1+ {[%emt 0:00:19]} 72. Ka2 {[%emt 0:00:17]} Qc3 {[%emt 0:00:48]} 73. Qe4 {[%emt 0:00:09]} d3 {[%emt 0:01:07]} 74. Qxe7+ {[%emt 0:00:26]} 1/2-1/2

[Event "French-ch U16-U18 2024"]
[Site "Agen"]
[Date "2024.04.14"]
[Round "1.4"]
[White "Vidoni, Salma"]
[Black "Delmouly, Manon"]
[Result "0-1"]
[ECO "D02"]
[WhiteElo "1532"]
[BlackElo "1800"]
[Annotator "NA RC"]
[PlyCount "92"]
[EventDate "2024.04.14"]
[EventType "swiss"]
[EventCountry "FRA"]
[SourceTitle "playchess.com"]
[Source "ChessBase"]
[SourceQuality "1"]
[TimeControl "5400+30"]

1. d4 {[%emt 0:00:08]} d5 {[%emt 0:00:09]} 2. Nf3 {[%emt 0:00:05]} e6 {[%emt 0:00:41]} 3. Bf4 {[%emt 0:00:27]} Nf6 {[%emt 0:00:22]} 4. e3 {[%emt 0:00:38]} Be7 {[%emt 0:00:21]} 5. h3 {[%emt 0:01:30]} O-O {[%emt 0:00:15]} 6. Bd3 {[%emt 0:00:20]} c5 {[%emt 0:00:24]} 7. c3 {[%emt 0:00:21]} Nc6 {[%emt 0:00:30]} 8. Nbd2 {[%emt 0:01:00]} cxd4 {[%emt 0:04:17]} 9. exd4 {[%emt 0:01:39]} Bd6 {[%emt 0:00:29]} 10. Ne5 {[%emt 0:06:07]} Qc7 {[%emt 0:00:57]} 11. Ndf3 {[%emt 0:13:37]} Rb8 {[%emt 0:02:47]} 12. O-O {[%emt 0:04:07]} b5 {[%emt 0:01:52]} 13. Rc1 {[%emt 0:07:16]} Re8 {[%emt 0:10:04]} 14. Qe2 {[%emt 0:03:29]} a6 {[%emt 0:01:48]} 15. Rfe1 {[%emt 0:03:18]} Bb7 {[%emt 0:03:21]} 16. Rc2 {[%emt 0:16:11]} Qe7 {[%emt 0:01:21]} 17. Bg5 {[%emt 0:02:24]} Rec8 {[%emt 0:01:14]} 18. Bxf6 {[%emt 0:01:43]} gxf6 {[%emt 0:02:01]} 19. Ng4 {[%emt 0:03:47]} Kh8 {[%emt 0:02:08]} 20. Qe3 {[%emt 0:01:47]} f5 {[%emt 0:06:50]} 21. Qh6 {[%emt 0:02:44]} Qf8 {[%emt 0:02:53]} 22. Qh5 {[%emt 0:06:18]} Qg7 {[%emt 0:02:28]} 23. Nh6 {[%emt 0:00:54]} Rf8 {[%emt 0:01:15]} 24. Ng5 {[%emt 0:00:41]} Nd8 {[%emt 0:02:24]} 25. g4 {[%emt 0:05:41]} Qg6 {[%emt 0:03:37]} 26. Qh4 {[%emt 0:02:25]} Bf4 {[%emt 0:04:32]} 27. gxf5 {[%emt 0:09:35]} Qxg5+ {[%emt 0:05:04]} 28. Qxg5 {[%emt 0:00:45]} Bxg5 {[%emt 0:00:09]} 29. Ng4 {[%emt 0:00:21]} Rg8 {[%emt 0:01:21]} 30. Kh1 {[%emt 0:00:19]} Bc8 {[%emt 0:00:53]} 31. f6 {[%emt 0:00:31]} h5 {[%emt 0:00:57]} 32. Ne5 {[%emt 0:04:30]} Bxf6 {[%emt 0:00:14]} 33. Nf3 {[%emt 0:00:46]} Nc6 {[%emt 0:00:26]} 34. Rce2 {[%emt 0:00:22]} b4 {[%emt 0:01:53]} 35. Nh2 {[%emt 0:01:01]} Bg5 {[%emt 0:01:27]} 36. f3 {[%emt 0:00:28]} Bf4 {[%emt 0:00:16]} 37. Nf1 {[%emt 0:00:08]} bxc3 {[%emt 0:00:47]} 38. bxc3 {[%emt 0:00:07]} f6 {[%emt 0:00:47]} 39. h4 {[%emt 0:01:03]} e5 {[%emt 0:00:16]} 40. dxe5 {[%emt 0:00:14]} Nxe5 {[%emt 0:00:24]} 41. Bc2 {[%emt 0:00:17]} Nxf3 {[%emt 0:37:06]} 42. Ne3 {[%emt 0:00:59]} Nxe1 {[%emt 0:00:00]} 43. Rxe1 {[%emt 0:00:19]} Bb7 {[%emt 0:00:00]} 44. Ng2 {[%emt 0:00:22]} d4 {[%emt 0:00:00]} 45. Re7 {[%emt 0:00:56]} Bxg2+ {[%emt 0:00:00]} 46. Kg1 {[%emt 0:00:11]} Be4+ {[%emt 0:00:00]} 0-1

[Event "French-ch U16-U18 2024"]
[Site "Agen"]
[Date "2024.04.14"]
[Round "1.5"]
[White "Lavilledieu, Lily-Mei"]
[Black "Razafindratsima, Grace"]
[Result "1-0"]
[ECO "E70"]
[WhiteElo "1783"]
[BlackElo "1529"]
[Annotator "NA RC"]
[PlyCount "48"]
[EventDate "2024.04.14"]
[EventType "swiss"]
[EventCountry "FRA"]
[SourceTitle "playchess.com"]
[Source "ChessBase"]
[SourceQuality "1"]
[TimeControl "5400+30"]

1. d4 {[%emt 0:00:03]} Nf6 {[%emt 0:00:07]} 2. c4 {[%emt 0:00:06]} g6 {[%emt 0:00:04]} 3. Nc3 {[%emt 0:00:09]} Bg7 {[%emt 0:00:06]} 4. e4 {[%emt 0:00:05]} d6 {[%emt 0:00:05]} 5. Bd3 {[%emt 0:00:07]} O-O {[%emt 0:00:24]} 6. Nge2 {[%emt 0:00:07]} Nbd7 {[%emt 0:01:29]} 7. Ng3 {[%emt 0:06:11]} e5 {[%emt 0:07:14]} 8. d5 {[%emt 0:00:09]} Nc5 {[%emt 0:17:18]} 9. Bc2 {[%emt 0:01:02]} a5 {[%emt 0:01:32]} 10. O-O {[%emt 0:02:29]} Ng4 {[%emt 0:12:09]} 11. h3 {[%emt 0:17:54]} Nh6 {[%emt 0:00:37]} 12. Be3 {[%emt 0:05:19]} b6 {[%emt 0:14:13]} 13. Qd2 {[%emt 0:06:01]} Ng4 {[%emt 0:20:55]} 14. hxg4 {[%emt 0:00:28]} Bxg4 {[%emt 0:00:07]} 15. Bh6 {[%emt 0:03:10]} Bd7 {[%emt 0:06:15]} 16. Nge2 {[%emt 0:09:13]} f5 {[%emt 0:01:47]} 17. Bxg7 {[%emt 0:13:22]} Kxg7 {[%emt 0:00:08]} 18. exf5 {[%emt 0:00:15]} Bxf5 {[%emt 0:00:39]} 19. Bxf5 {[%emt 0:03:20]} Rxf5 {[%emt 0:00:53]} 20. f4 {[%emt 0:03:15]} Qh4 {[%emt 0:05:53]} 21. Rf3 {[%emt 0:03:33]} Raf8 {[%emt 0:05:07]} 22. Rh3 {[%emt 0:05:23]} Qg4 {[%emt 0:02:18]} 23. fxe5 {[%emt 0:01:34]} dxe5 {[%emt 0:01:15]} 24. Qh6+ {[%emt 0:02:18]} Kf6 {[%emt 0:00:05]} 1-0

[Event "French-ch U16-U18 2024"]
[Site "Agen"]
[Date "2024.04.14"]
[Round "1.6"]
[White "Kuhn, Clement"]
[Black "Lyandzberg, Anatoly"]
[Result "1-0"]
[ECO "B11"]
[WhiteElo "2349"]
[BlackElo "1877"]
[Annotator "TA"]
[PlyCount "87"]
[EventDate "2024.04.14"]
[EventType "swiss"]
[EventCountry "FRA"]
[SourceTitle "playchess.com"]
[Source "ChessBase"]
[SourceQuality "1"]
[TimeControl "5400+30"]

{[%evp 10,87,22,22,22,25,19,0,37,27,30,26,29,31,32,35,131,130,133,133,131,139,125,78,145,100,145,131,145,114,193,199,200,198,197,-404,0,-664,226,225,243,227,243,241,246,253,244,241,287,283,284,239,229,175,204,183,202,210,210,171,306,306,306,299,290,241,430,421,430,407,402,346,440,429,503,495,733,628,948,932]} 1. e4 {[%emt 0:00:06]} c6 {[%emt 0:00:05]} 2. Nf3 {[%emt 0:00:22]} d5 {[%emt 0:00:07]} 3. Nc3 {[%emt 0:00:05]} dxe4 {[%emt 0:00:08]} 4. Nxe4 {[%emt 0:00:04]} Nf6 {[%emt 0:00:33]} 5. Qe2 {[%emt 0:00:16]} Nxe4 {[%emt 0:00:15]} 6. Qxe4 {[%emt 0:00:04]} Qd5 {[%emt 0:00:11] Repels Bc4} 7. Qf4 {[%emt 0:00:13]} Qf5 {[%emt 0:01:28]} 8. Qe3 {[%emt 0:00:01]} Qe6 {[%emt 0:01:33] The position is equal.} 9. b3 {[%emt 0:00:17]} Qxe3+ {[%emt 0:01:25]} 10. fxe3 {[%emt 0:00:23]} Bf5 {[%emt 0:02:22]} 11. Bb2 {[%emt 0:01:40]} Nd7 {[%emt 0:09:58]} 12. O-O-O {[%emt 0:00:31]} O-O-O {[%emt 0:01:56] [#]} ({Black should play} 12... f6 $14) 13. Ng5 $1 $16 {[%emt 0:03:33]} Bg6 {[%emt 0:11:23]} 14. Bd3 {[%emt 0:13:40] Hoping for Bxg6.} Re8 {[%emt 0:04:54]} (14... Bxd3 $2 15. Nxf7 (15. cxd3 Rg8 $18) 15... Be4 16. Nxh8 $18) 15. Bxg6 {[%emt 0:00:47]} fxg6 {[%emt 0:00:09]} 16. Rdf1 {[%emt 0:01:41] White has more active pieces.} ({Better is} 16. Ne6) 16... Nf6 {[%emt 0:02:34]} ({Black should try} 16... e5) 17. h4 {[%emt 0:03:05]} Kd7 {[%emt 0:02:53]} 18. e4 {[%emt 0:02:49]} e6 {[%emt 0:22:13]} 19. Rh3 {[%emt 0:09:41]} Bc5 {[%emt 0:04:32]} (19... Be7 $16 {was called for.} 20. a3 Rhf8) 20. Rd3+ $18 {[%emt 0:01:21]} Kc8 {[%emt 0:01:39]} 21. Bxf6 {[%emt 0:00:19]} gxf6 {[%emt 0:00:06] [#]} 22. Rff3 $4 {[%emt 1:00:32][%mdl 8192]} f5 $2 (22... fxg5 $19 23. hxg5 Ref8) 23. Rxf5 $2 {[%emt 0:00:00][%mdl 8192]} e5 $4 {[%emt 0:03:19][%mdl 8192] Black is weak on the light squares} (23... gxf5 $19 24. a4 h6) 24. Rf7 {[%emt 0:00:00][%cal Od3d7]} h6 {[%emt 0:07:00]} 25. Nf3 {[%emt 0:00:00] Rdd7 would now be deadly.} Rhf8 {[%emt 0:01:52]} 26. Rdd7 {[%emt 0:00:00]} Rxf7 {[%emt 0:01:47]} 27. Rxf7 {[%emt 0:00:00][%mdl 4096] Endgame. KRB-KRN} Re6 {[%emt 0:00:48]} 28. Kd1 {[%emt 0:00:00]} Be7 {[%emt 0:19:20]} 29. g4 {[%emt 0:00:00]} Rf6 {[%emt 0:00:00]} 30. Rxe7 {[%emt 0:00:00]} ({Much less strong is} 30. Nxe5 Re6 $18) 30... Rxf3 {[%emt 0:00:00] KR-KR} 31. Rg7 {[%emt 0:00:00]} Rh3 {[%emt 0:00:00]} 32. Rxg6 {[%emt 0:00:00]} Rxh4 {[%emt 0:00:00]} 33. d3 {[%emt 0:00:00]} h5 {[%emt 0:00:00]} 34. Rh6 {[%emt 0:00:00]} Rxg4 {[%emt 0:00:00]} (34... Rh1+ {might work better.} 35. Kd2 h4) 35. Rxh5 {[%emt 0:00:00]} Kd7 {[%emt 0:00:00]} 36. Rxe5 {[%emt 0:00:00]} Kd6 {[%emt 0:00:00]} 37. Rh5 {[%emt 0:00:00] Black must now prevent Rh7.} b5 $2 {[%emt 0:00:00]} (37... Rg1+ 38. Kd2 Rg2+ 39. Kc1 c5) 38. Kc1 {[%emt 0:00:00]} ({Don't do} 38. Rh6+ Kc7 39. b4 (39. Rh7+ Kb6 $18) 39... Rg1+ 40. Kd2 Rf1 $18) 38... Rg2 {[%emt 0:00:00]} 39. Kb2 {[%emt 0:00:00]} Rg7 {[%emt 0:00:00]} 40. a3 {[%emt 0:00:00]} Re7 {[%emt 0:00:00]} 41. b4 {[%emt 0:00:00] White is clearly winning.} a6 {[%emt 0:00:00]} 42. Kc3 {[%emt 0:00:00]} Rc7 {[%emt 0:00:58]} (42... Rg7 $142 43. Kd4 Rg2 44. e5+ Ke7 45. Rh7+ Kf8) 43. Kd4 {[%emt 0:00:00] Rh6+ is the strong threat.} Rd7 {[%emt 0:00:09]} 44. Rh6+ {[%emt 0:00:00] Weighted Error Value: White=0.44/Black=0.61.  Loses game:     	White=1     	---        Missed win:     	White=1     	Black=2      Mistake:       	White=1     	Black=6      Inaccurate:     	White=1     	Black=3      OK:         	White=13    	Black=9      Best:        	White=1     	Black=1      Strong:       	White=1     	---} 1-0

[Event "French-ch U16-U18 2024"]
[Site "Agen"]
[Date "2024.04.14"]
[Round "1.6"]
[White "Kuhn, Clement"]
[Black "Caldas, Raphael C B R Leitao"]
[Result "*"]
[ECO "B11"]
[WhiteElo "2349"]
[BlackElo "1759"]
[Annotator "RC"]
[PlyCount "32"]
[EventDate "2024.04.14"]
[EventType "swiss"]
[EventCountry "FRA"]
[SourceTitle "playchess.com"]
[Source "ChessBase"]
[SourceQuality "1"]
[TimeControl "5400+30"]

1. e4 {[%emt 0:00:06]} c6 {[%emt 0:00:05]} 2. Nf3 {[%emt 0:00:22]} d5 {[%emt 0:00:07]} 3. Nc3 {[%emt 0:00:05]} dxe4 {[%emt 0:00:08]} 4. Nxe4 {[%emt 0:00:04]} Nf6 {[%emt 0:00:33]} 5. Qe2 {[%emt 0:00:16]} Nxe4 {[%emt 0:00:15]} 6. Qxe4 {[%emt 0:00:04]} Qd5 {[%emt 0:00:11]} 7. Qf4 {[%emt 0:00:13]} Qf5 {[%emt 0:01:28]} 8. Qe3 {[%emt 0:00:01]} Qe6 {[%emt 0:01:33]} 9. b3 {[%emt 0:00:17]} Qxe3+ {[%emt 0:01:25]} 10. fxe3 {[%emt 0:00:23]} Bf5 {[%emt 0:02:22]} 11. Bb2 {[%emt 0:01:40]} Nd7 {[%emt 0:09:58]} 12. O-O-O {[%emt 0:00:31]} O-O-O {[%emt 0:01:56]} 13. Ng5 {[%emt 0:03:33]} Bg6 {[%emt 0:11:23]} 14. Bd3 {[%emt 0:13:40]} Re8 {[%emt 0:04:54]} 15. Bxg6 {[%emt 0:00:47]} fxg6 {[%emt 0:00:09]} 16. Rdf1 {[%emt 0:01:41]} Nf6 {[%emt 0:02:34]} *